Cogmind - Beta 15 @@@ ROGUE MODE // 2025.05.23 @ 05:35:52 Player: KeKe Result: Destroyed by MN-W6R(x) with Makeshift Spear Performance ------------- Evolutions (0) 0 Regions Visited (3) 600 Robots Destroyed (17) 85 Value Destroyed (379) 379 Prototype IDs (8) 160 Alien Tech Used (0) 0 Bonus (830) 830 TOTAL SCORE: 2054 Bonus ------- Follower Combat Kills 30 Registered with UFD 300 Met Optimus in HQ 500 Cogmind --------- Core Integrity 0/250 Matter 290/300 Energy 1341/2600 System Corruption 0% Temperature Cool (12) Movement Walking (240) Ox2 Location -7/Scraptown Parts ------- > --- POWER (1) -------- MA-1KR's Cyclogen > --- PROPULSION (2) --- Overtuned Titanium Leg Overtuned Titanium Leg > --- UTILITY (2) ------ Large Storage Unit Makeshift Light Armor Plating > --- WEAPON (2) ------- DM-GVY's Chainsaw > --- INVENTORY (15) --- Ion Engine Large Storage Unit Makeshift Hacking Suite Light Assault Rifle Light Assault Rifle Light Assault Rifle Peak State ------------ > --- POWER ------------ MA-1KR's Cyclogen > --- PROPULSION ------- Overtuned Titanium Leg Overtuned Titanium Leg > --- UTILITY ---------- Large Storage Unit Makeshift Light Armor Plating > --- WEAPON ----------- Barrage Gun DM-GVY's Chainsaw > --- INVENTORY -------- Ion Engine Large Storage Unit Light Assault Rifle Light Assault Rifle Light Assault Rifle Deploy-a-Sentry [Rating: 32] Favorites ----------- Power Light Ion Engine Engine Light Ion Engine Reactor MA-1KR's Cyclogen Propulsion Compact Wheel Leg Overtuned Titanium Leg Wheel Compact Wheel Utility Large Storage Unit Device Seismic Detector Storage Large Storage Unit Protection Makeshift Light Armor Plating Weapon Light Assault Rifle Ballistic Gun Light Assault Rifle Slashing Weapon DM-GVY's Chainsaw Build | -11 -10 -10 -7 ------- Run | Yrd Mat Sub Scr Slots Evolved . | . . . . Power . | . . . . Propulsion . | . . . . Utility . | . . . . Weapon . | . . . . Parts Attached 20 | 7 1 . 12 Power 4 | 1 . . 3 Engine 3 | 1 . . 2 Core . | . . . . Reactor 1 | . . . 1 Propulsion 6 | 2 . . 4 Treads . | . . . . Leg 4 | . . . 4 Wheel 2 | 2 . . . Hover . | . . . . Flight . | . . . . Utility 4 | 2 1 . 1 Device 1 | 1 . . . Storage 2 | 1 1 . . Processor . | . . . . Hackware . | . . . . Protection 1 | . . . 1 Artifact . | . . . . Weapon 6 | 2 . . 4 Energy Gun . | . . . . Energy Cannon . | . . . . Ballistic Gun 5 | 2 . . 3 Ballistic Cannon . | . . . . Launcher . | . . . . Special Weapon . | . . . . Impact Weapon . | . . . . Slashing Weapon 1 | . . . 1 Piercing Weapon . | . . . . Special Melee Weapon . | . . . . Unidentified Prototypes 2 | . . . 2 Parts Lost 3 | . . . 3 Power 1 | . . . 1 Propulsion 1 | . . . 1 Utility . | . . . . Weapon 1 | . . . 1 Highest Loss Streak 2 | . . . 2 To Critical Strikes . | . . . . Average Backups 8 | 3 8 9 9 Power . | . 1 1 . Propulsion 3 | 2 4 4 2 Utility . | . . 1 1 Weapon 3 | . 2 3 4 Tool/Special . | . . . . Unused Backups 8 | . . . 8 Power . | . . . . Propulsion 4 | . . . 4 Utility 2 | . . . 2 Weapon 2 | . . . 2 Tool/Special . | . . . . Average Slot Usage (%) 82 | . 100 100 76 Engine 11 | . 14 14 10 Reactor 2 | . . . 3 Leg 5 | . . . 6 Wheel 21 | . 28 28 19 Device 10 | . 14 14 9 Storage 14 | . 14 14 14 Protection 3 | . . . 4 Ballistic Gun 10 | . 28 28 4 Slashing Weapon 2 | . . . 3 Peak Build Rating 32 | 7 7 7 32 Average Rating 10 | 5 7 7 12 On Entrance 5 | . 7 7 7 Naked Turns . | . . . . Heaviest Build 51 | 12 27 27 51 Greatest Support 38 | 26 26 26 38 Greatest Overweight (x) 16 | . 1 1 16 Average Overweight (x) . | . . 1 . Largest Inventory Capacity 15 | 8 15 15 15 Average Capacity 14 | 7 14 15 15 Most Carried 11 | 6 9 9 11 Average Carried 8 | 3 8 9 9 Final Capacity 15 | 8 15 15 15 Final Carried 9 | 6 9 9 6 Class Distribution -------------------- 87% | Mutant 12% | Scavenger-Mutant Dominant Class ---------------- Mutant | -10/Materials Mutant | -10/Subcaves Mutant | -7/Scraptown Resources | -11 -10 -10 -7 ----------- Run | Yrd Mat Sub Scr Matter Collected 615 | 295 45 . 275 Remotely . | . . . . Salvage Created 608 | 201 133 . 274 Parts 48 | 20 11 . 17 Haulers Intercepted . | . . . . Recyclers Shooed . | . . . . Parts Field Recycled . | . . . . Retrieved Matter . | . . . . Parts Self-Destructed 7 | . . 7 . Prevented . | . . . . Kills | -11 -10 -10 -7 ------- Run | Yrd Mat Sub Scr Combat Hostiles Destroyed 9 | . 5 . 4 Melee 2 | . . . 2 Guns 7 | . 5 . 2 Classes Destroyed 7 | 3 2 . 2 Worker 1 | 1 . . . Tunneler 5 | 5 . . . Recycler 1 | 1 . . . Turret 1 | . . . 1 Swarmer 3 | . 3 . . Grunt 2 | . 2 . . Scrapper 4 | . . . 4 Best Kill Streak 6 | 6 3 . 2 Combat Bots Only 3 | . 3 . 2 Max Kills in Single Turn 2 | 1 2 . 1 Gunslinging . | . . . . Exploded . | . . . . Melee 1 | . . . 1 Uniques/NPCs Destroyed . | . . . . Combat | -11 -10 -10 -7 -------- Run | Yrd Mat Sub Scr Hostile Shots Fired 117 | . 21 . 96 Missed 26 | . 8 . 18 Hits 91 | . 13 . 78 Melee 1 | . . . 1 Projectile 90 | . 13 . 77 Critical Strikes 4 | . . . 4 Damage Taken 1290 | . 146 . 1144 Core 273 | . 24 . 249 Absorbed by Shields . | . . . . Core Remaining (%) 100 | 100 . . . Volleys Fired 46 | 14 15 . 17 Largest 2 | 2 2 . 2 Hottest 58 | 40 40 . 58 Shots Fired 84 | 28 30 . 26 Gun 84 | 28 30 . 26 Cannon . | . . . . Launcher . | . . . . Special . | . . . . Kinetic 84 | 28 30 . 26 Thermal . | . . . . Explosive . | . . . . Electromagnetic . | . . . . Robot Hit Streak 5 | 4 5 . 3 Robot Miss Streak 4 | 2 2 . 4 Penetration Max . | . . . . Secondary Targets . | . . . . Shots Hit Robots 50 | 13 19 . 18 Core Hits 26 | 9 9 . 8 Critical Kills 1 | . . . 1 Critical Parts Destroyed . | . . . . Critical Strikes 2 | . . . 2 Destroy 1 | . . . 1 Sever 1 | . . . 1 Melee Attacks 7 | . . . 7 Impact . | . . . . Slashing 7 | . . . 7 Piercing . | . . . . Sneak Attacks . | . . . . Combat Hostiles . | . . . . Follow-up Attacks . | . . . . Damage Inflicted 792 | 143 216 . 433 Guns 618 | 143 216 . 259 Cannons . | . . . . Explosions . | . . . . Melee 174 | . . . 174 Ramming . | . . . . Kinetic 618 | 143 216 . 259 Thermal . | . . . . Explosive . | . . . . Electromagnetic . | . . . . Impact . | . . . . Slashing 174 | . . . 174 Piercing . | . . . . Highest Corruption . | . . . . Average Corruption . | . . . . Corruption Purged . | . . . . Corruption Blocked . | . . . . Overload Shots . | . . . . Overflow Damage . | . . . . Projectiles . | . . . . Explosions . | . . . . Melee . | . . . . Knockbacks . | . . . . Impact . | . . . . Kinetic . | . . . . Secondary . | . . . . Self-Inflicted Damage . | . . . . Shots . | . . . . Rammed . | . . . . Targets Rammed . | . . . . Kicked . | . . . . Crushed . | . . . . Highest Temperature 346 | . 9 . 346 Average Temperature 148 | . 8 . 166 Received Heat Transfer 607 | . 57 . 550 Siege Activations . | . . . . Martial Activations . | . . . . Shielding Activations . | . . . . Robots Disrupted . | . . . . Combat Hostiles . | . . . . Robots Corrupted . | . . . . Combat Hostiles . | . . . . Parts Fried . | . . . . Impact Corruptions . | . . . . Robots Melted . | . . . . Combat Hostiles . | . . . . Parts Melted . | . . . . Heat Transferred . | . . . . Parts Sabotaged . | . . . . Parts Stolen . | . . . . Parts Stripped . | . . . . Power Chain Reactions . | . . . . Alert | -11 -10 -10 -7 ------- Run | Yrd Mat Sub Scr Maximum Alert Level . | . . . . Low Security (%) 100 | 100 100 . . Level 1 . | . . . . Level 2 . | . . . . Level 3 . | . . . . Level 4 . | . . . . Level 5 . | . . . . High Security . | . . . . Max Security . | . . . . Peak Influence 105 | 20 105 . . Initial 6 | . 6 . . Average 38 | 5 54 . . Influence Increases 170 | 35 135 . . Destroy 0b10 Robot/C 100 | . 100 . . Destroy 0b10 Robot/NC 35 | 35 . . . Destroy Leader 20 | . 20 . . Lose Combat Pursuer 15 | . 15 . . Influence Decreases 170 | 25 90 55 . Entered New Map 31 | . 4 27 . Time Decay 139 | 25 86 28 . Squads Dispatched 1 | . 1 . . Investigation . | . . . . Extermination . | . . . . Reinforcement 1 | . 1 . . Assault . | . . . . Garrison . | . . . . Intercept . | . . . . Searches Triggered . | . . . . Construction Impeded . | . . . . Haulers Reinforced . | . . . . Active Scanning Responses . | . . . . Cargo Convoy Interrupts . | . . . . Stealth | -11 -10 -10 -7 --------- Run | Yrd Mat Sub Scr Distress Signals . | . . . . Communications Jammed . | . . . . Distress Signals . | . . . . Times Spotted 36 | . 6 . 30 Peak Tracking Total 7 | . 3 . 7 Tactical Retreats 3 | . 1 . 2 Traps | -11 -10 -10 -7 ------- Run | Yrd Mat Sub Scr Traps Triggered . | . . . . Indirectly . | . . . . Trap Hack Attempts . | . . . . Triggered . | . . . . Disarmed . | . . . . Reprogrammed . | . . . . Reused . | . . . . Traps Extracted . | . . . . Installed . | . . . . Triggered . | . . . . Machines | -11 -10 -10 -7 ---------- Run | Yrd Mat Sub Scr Machines Disabled 3 | . . . 3 Max in Single Turn 1 | . . . 1 Machines Repaired . | . . . . Machines Dismantled . | . . . . Machines Sabotaged . | . . . . Overloaded Fab Kills . | . . . . Hacking | -11 -10 -10 -7 --------- Run | Yrd Mat Sub Scr Machines Accessed 2 | . 1 . 1 Terminals 1 | . 1 . . Fabricators . | . . . . Repair Stations . | . . . . Recycling Units . | . . . . Scanalyzers . | . . . . Garrison Access . | . . . . Total Hacks 6 | . 3 . 3 Successful 3 | . . . 3 Failed 3 | . 3 . . Catastrophic 1 | . 1 . . Database Lockouts . | . . . . Manual 3 | . 3 . . Terminals 3 | . 3 . . Fabricators . | . . . . Repair Stations . | . . . . Recycling Units . | . . . . Scanalyzers . | . . . . Garrison Access . | . . . . Terminal Hacks 3 | . . . 3 Record 3 | . . . 3 Fabricator Hacks . | . . . . Repair Station Hacks . | . . . . Recycling Unit Hacks . | . . . . Scanalyzer . | . . . . Garrison Access Hacks . | . . . . Unauthorized Hacks . | . . . . Terminals . | . . . . Fabricators . | . . . . Repair Stations . | . . . . Recycling Units . | . . . . Scanalyzers . | . . . . Garrison Access . | . . . . Data Cores Recovered . | . . . . Used . | . . . . Hacking Detections 1 | . 1 . . Full Trace Events . | . . . . Feedback Events . | . . . . Feedback Blocked . | . . . . Robot Schematics Acquired . | . . . . Robots Built . | . . . . Authchips . | . . . . Time . | . . . . Total Robot Build Rating . | . . . . Part Schematics Acquired . | . . . . Parts Built . | . . . . Authchips . | . . . . Time . | . . . . Total Part Build Rating . | . . . . Parts Repaired . | . . . . Time . | . . . . Parts Recycled . | . . . . Recycled Matter . | . . . . Retrieved Matter . | . . . . Retrieved Components . | . . . . Parts Scanalyzed . | . . . . Part Schematics Acquired . | . . . . Parts Damaged . | . . . . Bothacking | -11 -10 -10 -7 ------------ Run | Yrd Mat Sub Scr Used RIF Installer . | . . . . Robots Hacked . | . . . . Non-combat . | . . . . Combat . | . . . . Robot Hacks Applied . | . . . . Relay Couplers Released . | . . . . Fabnet Peak Effective % . | . . . . Robots Rewired . | . . . . Allies Hacked . | . . . . Hacks Repelled . | . . . . Allies | -11 -10 -10 -7 -------- Run | Yrd Mat Sub Scr Total Allies . | . . . . Largest Group . | . . . . Highest-Rated Group . | . . . . Highest-Rated Ally . | . . . . Total Orders . | . . . . Ally Attacks 5 | . . . 5 Total Damage 263 | . . . 263 Kills 1 | . . . 1 Allies Corrupted . | . . . . Allies Melted 6 | . . . 6 Turrets Deployed 1 | . . . 1 Intel | -11 -10 -10 -7 ------- Run | Yrd Mat Sub Scr Active Infowar (turns) 960 | 21 218 72 649 Seismic 960 | 21 218 72 649 Robot Analysis Total . | . . . . Derelict Logs Recovered . | . . . . Drone Launches . | . . . . Drone Recoveries . | . . . . Exploration | -11 -10 -10 -7 ------------- Run | Yrd Mat Sub Scr Turns Passed 1382 | 113 218 72 979 Spaces Moved 995 | 58 107 31 799 Core 3 | 1 . . 2 Treads . | . . . . Legs 85 | . . . 85 Wheels 907 | 57 107 31 712 Hover . | . . . . Flight . | . . . . Fastest Speed 50 | 50 90 105 90 Average Speed 100 | 89 102 105 101 Slowest Speed 850 | 100 105 105 850 Overloaded Moves . | . . . . Propulsion Burnouts . | . . . . Robots Hopped 2 | . . . 2 Potential Cave-ins . | . . . . Cave-ins Triggered . | . . . . Exploration Rate (%) 25 | 3 25 6 67 Regions Visited 3 Branch Regions 2 Pre-discovered Areas . | . . . . Known Exits Taken . | . . . . Unknown Exits Taken 3 | 1 1 1 . Scrap Searched . | . . . . Spaces Dug 1 | . . . 1 Terrain Destroyed 1 | . . . 1 Melee 1 | . . . 1 Projectile . | . . . . AOE . | . . . . Terrain Rammed . | . . . . Walls Destroyed . | . . . . Machines Disabled . | . . . . Actions | -11 -10 -10 -7 --------- Run | Yrd Mat Sub Scr Total 1283 | 90 188 70 935 Wait 188 | 5 62 40 81 Move 988 | 57 106 30 795 Hop 2 | . . . 2 Pick Up 12 | 7 3 . 2 Fast Attach 15 | 6 . . 9 Attach 5 | 1 . . 4 Detach 2 | . . . 2 Swap 3 | . 1 . 2 Drop 15 | . 1 . 14 Fire 46 | 14 15 . 17 Melee 7 | . . . 7 Ram . | . . . . Kick . | . . . . Crush . | . . . . Escape Stasis . | . . . . Rewire . | . . . . Trap . | . . . . Miscellaneous . | . . . . Route ------- -11/Scrapyard -10/Materials (discovered 2 exits: [*Min] / [*Sub]) -10/Subcaves -7/Scraptown (discovered 1 exit: [*Fac]) History --------- Turn | Location | Event 15 | -11/Scrapyard | Discovered new exit (range 14) 114 | -11/Scrapyard | Entered Materials 259 | -10/Materials | Discovered new exit (range 12) 306 | -10/Materials | Build established: Mutant 325 | -10/Materials | Discovered new exit (range 7) 332 | -10/Materials | Entered Subcaves 333 | -10/Subcaves | Approached by a straggling Scientist 393 | -10/Subcaves | Scientist uncovered a shortcut to Scraptown 404 | -10/Subcaves | Entered Scraptown 488 | -7/Scraptown | Heard Great Nut preacher, LISTEN AND RECITE! 536 | -7/Scraptown | Discovered new exit (range 13) 628 | -7/Scraptown | Visited TADAMA 668 | -7/Scraptown | Visited Bundlers 705 | -7/Scraptown | Visited SPCMW 730 | -7/Scraptown | Visited UFD Registry 744 | -7/Scraptown | Registered with UFD as "Carbonface" 768 | -7/Scraptown | Visited Scrapoid Pod Storage 795 | -7/Scraptown | Visited DA-N13 Charitable Foundation 796 | -7/Scraptown | Received an X-ray algorithm 968 | -7/Scraptown | Met Optimus 968 | -7/Scraptown | Accepted into 0bPrime 1006 | -7/Scraptown | Visited Infowarlord's Domain 1014 | -7/Scraptown | Civil war broke out across Scraptown 1035 | -7/Scraptown | Visited Curators Association 1061 | -7/Scraptown | Core integrity fell below 50% 1077 | -7/Scraptown | Lost 6 allies 1117 | -7/Scraptown | Core integrity fell below 20% 1147 | -7/Scraptown | Found Prototype Slashing Weapon 1147 | -7/Scraptown | Identified DM-GVY's Chainsaw 1158 | -7/Scraptown | Found Prototype Reactor 1158 | -7/Scraptown | Identified MA-1KR's Cyclogen 1179 | -7/Scraptown | Found Deploy-a-Sentry 1194 | -7/Scraptown | Lost 10 allies 1198 | -7/Scraptown | DAS Turret deployed 1258 | -7/Scraptown | Lost 3 allies 1338 | -7/Scraptown | Optimus destroyed in the chaos of civil war 1383 | -7/Scraptown | Destroyed by MN-W6R(x) with Makeshift Spear Last Messages --------------- 01238_ BG-X50(j) cannibalizes Ovr. Titanium Leg to repair Ovr. Titanium Leg. 01239_ 0H-LNX(j) destroyed. 01240_ Critical hit (Burn: +50). 01242_ BG-X50(j) destroyed. 01245_ Dropped Ovr. Titanium Leg. 01254_ Acquired Ovr. Titanium Leg. 01260_ Acquired Mak. Hacking Suite. 01261_ Acquired 10 matter. 01271_ 1L-4EQ(p) switches sides. 01284_ Machine disabled. 01286_ 1L-4EQ(p) destroyed. 01338_ ANNOUNCEMENT: The traitor Optimus has been dealt with. Put down any remaining collaborators. 01358_ PI-QKL(j) suffers critical hit (Burn). 01358_ PI-QKL(j) destroyed. 01363_ Acquired Ovr. Titanium Leg. 01375_ Ovr. Titanium Leg recovered from malfunction. Map ----- +----------------------------------------------------+ | ???????????? "##??????????????????????????? | | ??????????? ???????????????????????????? | | ???????????"""" "#???????????????????????????? | | ???????????"""" "#???????????????????????????? | | ###?????????#"" "#???????????????????????????? | | ##????????#"" "#???????????????????????????? | | X"?????????#"" "#??########?????????????????? | | ##????????#"" ="#?? !!!!! #?????????????????? | | X"#??????###"" !%"#? #?????????????????? | | ######### #"" "## #?????????????????? | | ! #?????????????????? | | = "## !!!!! #?????????????????? | | ######### #" ! "#?#########?????????????????? | | ""#??????###" % "#???????????????????????????? | | ##????????#""!%! "#???????????????????????????? | | X"#????????#" !**! "####?###??##????????????????? | | ##????????#""[==!!"##"###"###"#????????????????? | | #############"!%=*!!"##!" " " " #????????????????? | | """""""""""""""!==[%%##*!"" *"" ###??????????????? | | """""""""""""""%[=![[%[[ % "#??????????????? | | =!%!!%!%!"#;%*[ ""##??????????????? | | = !=[!!=%![!=##!j % "!#???????????????? | | !=[ %! ==%!=!!=!"%#= ""##??????????????? | | !%%[ ! !%!*![!!%## "#??????????????? | | =!=%! =!!!!%!=[[=# "x" """ ###??????????????? | | """ "" %![[=[%!!## "@" "!" #????????????????? | | ########"#" "[""##!!!##"##;"###"#????????????????? | | ""???# " ##[=="###?###??##????????????????? | | ??# = #### = "#??????????????????????????? | | """ ?# %= #??*=[ #???????????????????????????? | | ##" ?# $ [$ #??#% %"???????????????????????????? | | #?? ?# "" #??#= "#??????????????????????????? | | ?????# #" #??# ############????????????????? | | ?????####"""#"#??# ! #????????????????? | | ?????????######??#[&%* ##????????????????? | | ?????????????????#%![ #????????????????? | | ?????????????????#!= #????????????????? | | ?????????????????# #????????????????? | | ?????????????????# ############????????????????? | | ################## #####???????????????????????? | | ""##"""##"""##"|"# """"#???????????????????????? | | "##"""##"" ##" # "" "#???????????????????????? | | "#???????????????????????? | | " "#???????????????????????? | | """"#???????????????????????? | | " ##" "##!!$##""|## ######???????????????????????? | | ""##"""##"""##"""####????????????????????????????? | | ##################???????????????????????????????? | | ?????????????????????????????????????????????????? | | ?????????????????????????????????????????????????? | +----------------------------------------------------+ Best States ------------- Heat Dissipation 25 Energy Generation 14 Energy Capacity 2600 Matter Stores 300 Matter Capacity 300 Sight Range 16 Terrain Scan Density 10 Armor Coverage 100 Evasion (%) 45 Item Schematics ----------------- None Robot Schematics ------------------ None Fabricated ------------ Nothing Repaired ---------- Nothing Alien Tech Used ----------------- None Achievements -------------- None Challenges ------------ None Game ------ Seed MicrowarpShadeDriveblaster Manual? 0 Play Time 00:26:40 Cumulative 79.2 hours Start 2025.05.23 @ 05:09:27 End 2025.05.23 @ 05:35:52 Sessions 1 Manual Loads 0 Difficulty Rogue Special Mode None Game No. 69 Rogue 69 Adventurer 0 Explorer 0 Win Type - Total 0 Types 0/0/0/0/0/0/0/0/0/0 Lore% 36 Gallery% 39 Achievement% 41 Wizard Run 0 Options --------- Layout 1 ASCII 0 Keyboard 0 Movement Mouse Keybinds 0 Fullscreen 2 Font 24/X11 Map View 50x35 Zoom Use 0% Tactical HUD 1 Map Filters NONE Filters NONE Steam 1 RUN: e990e097-c310-4413-a8ca-8c049eb924df